[Event "Late Titled Tuesday Blitz February 8 2022"]
[White "Nepomniachtchi, Ian"]
[Black "Xiong, Jeffery"]
[WhiteFideId "4168119"]
[BlackFideId "2047640"]
[WhiteElo "2740"]
[BlackElo "2727"]
[Result "1-0"]
[Round "09"]
[TimeControl "180+1"]
[Date "2022.02.08"]
[WhiteClock "0:01:39"]
[BlackClock "0:00:03"]

1. e4 {[%clk 0:03:00]}  c6 {[%clk 0:03:00]} 2. Nf3 {[%clk 0:03:00]}  d5 {[%clk 0:03:00]} 3. Nc3 {[%clk 0:03:00]}  g6 {[%clk 0:03:00]} 4. d4 {[%clk 0:03:00]}  Bg7 {[%clk 0:03:00]} 5. h3 {[%clk 0:03:01]}  dxe4 {[%clk 0:03:00]} 6. Nxe4 {[%clk 0:03:01]}  Nf6 {[%clk 0:03:01]} 7. Bd3 {[%clk 0:03:02]}  O-O {[%clk 0:03:01]} 8. O-O {[%clk 0:03:01]}  Nxe4 {[%clk 0:02:52]} 9. Bxe4 {[%clk 0:03:01]}  Nd7 {[%clk 0:02:53]} 10. c3 {[%clk 0:03:01]}  e5 {[%clk 0:02:53]} 11. Bg5 {[%clk 0:02:48]}  Qc7 {[%clk 0:02:52]} 12. d5 {[%clk 0:02:40]}  cxd5 {[%clk 0:02:52]} 13. Bxd5 {[%clk 0:02:37]}  Nb6 {[%clk 0:02:42]} 14. Bb3 {[%clk 0:02:34]}  h6 {[%clk 0:02:42]} 15. Bh4 {[%clk 0:02:29]}  Nc4 {[%clk 0:02:35]} 16. Qe2 {[%clk 0:02:26]}  Be6 {[%clk 0:02:35]} 17. Rfe1 {[%clk 0:02:26]}  Rfe8 {[%clk 0:02:35]} 18. Rad1 {[%clk 0:02:25]}  a5 {[%clk 0:02:30]} 19. Ba4 {[%clk 0:02:25]}  Reb8 {[%clk 0:02:21]} 20. Bg3 {[%clk 0:02:16]}  b5 {[%clk 0:02:17]} 21. Bb3 {[%clk 0:02:16]}  a4 {[%clk 0:02:02]} 22. Nxe5 {[%clk 0:02:00]}  axb3 {[%clk 0:01:12]} 23. Nxg6 {[%clk 0:01:58]}  Qb7 {[%clk 0:01:13]} 24. Bxb8 {[%clk 0:01:56]}  Rxa2 {[%clk 0:00:34]} 25. Rd8+ {[%clk 0:01:48]}  Kh7 {[%clk 0:00:35]} 26. Nf4 {[%clk 0:01:46]}  Bf5 {[%clk 0:00:04]} 27. Qe8 {[%clk 0:01:45]}  h5 {[%clk 0:00:03]} 28. Nxh5 {[%clk 0:01:39]} 1-0


[Site "https://www.chess.com"]

[Event "Late Titled Tuesday Blitz February 8 2022"]
[White "Nikologorsky, Matfei"]
[Black "Levine, David"]
[WhiteFideId "24102474"]
[BlackFideId "2011611"]
[WhiteElo "2231"]
[BlackElo "2141"]
[Result "1-0"]
[Round "09"]
[TimeControl "180+1"]
[Date "2022.02.09"]
[WhiteClock "0:01:00"]
[BlackClock "0:00:21"]

1. e4 {[%clk 0:03:00]}  e5 {[%clk 0:02:59]} 2. Nf3 {[%clk 0:03:00]}  Nc6 {[%clk 0:02:59]} 3. Bb5 {[%clk 0:03:00]}  a6 {[%clk 0:02:59]} 4. Ba4 {[%clk 0:03:00]}  Nf6 {[%clk 0:02:59]} 5. O-O {[%clk 0:03:00]}  Be7 {[%clk 0:02:59]} 6. d3 {[%clk 0:02:56]}  b5 {[%clk 0:02:54]} 7. Bb3 {[%clk 0:02:56]}  O-O {[%clk 0:02:51]} 8. a4 {[%clk 0:02:55]}  Rb8 {[%clk 0:02:47]} 9. axb5 {[%clk 0:02:53]}  axb5 {[%clk 0:02:47]} 10. Nc3 {[%clk 0:02:47]}  d6 {[%clk 0:02:47]} 11. h3 {[%clk 0:02:37]}  Nd4 {[%clk 0:02:36]} 12. Nxd4 {[%clk 0:02:35]}  exd4 {[%clk 0:02:35]} 13. Ne2 {[%clk 0:02:36]}  c5 {[%clk 0:02:33]} 14. c3 {[%clk 0:02:22]}  dxc3 {[%clk 0:02:28]} 15. bxc3 {[%clk 0:02:21]}  d5 {[%clk 0:02:28]} 16. Bf4 {[%clk 0:02:16]}  Rb6 {[%clk 0:02:10]} 17. e5 {[%clk 0:02:02]}  Ne8 {[%clk 0:02:07]} 18. Ng3 {[%clk 0:01:43]}  Nc7 {[%clk 0:02:05]} 19. d4 {[%clk 0:01:35]}  Ne6 {[%clk 0:02:01]} 20. Be3 {[%clk 0:01:35]}  c4 {[%clk 0:01:53]} 21. Bc2 {[%clk 0:01:35]}  b4 {[%clk 0:01:53]} 22. cxb4 {[%clk 0:01:34]}  Rxb4 {[%clk 0:01:52]} 23. f4 {[%clk 0:01:34]}  f5 {[%clk 0:01:31]} 24. Nxf5 {[%clk 0:01:28]}  g6 {[%clk 0:00:41]} 25. Nh6+ {[%clk 0:01:25]}  Kh8 {[%clk 0:00:37]} 26. f5 {[%clk 0:01:25]}  gxf5 {[%clk 0:00:32]} 27. Nxf5 {[%clk 0:01:20]}  Rg8 {[%clk 0:00:29]} 28. Ra7 {[%clk 0:01:07]}  Bg5 {[%clk 0:00:21]} 29. Rxh7+ {[%clk 0:00:59]}  Kxh7 {[%clk 0:00:21]} 30. Qh5+ {[%clk 0:01:00]} 1-0


[Site "https://www.chess.com"]

[Event "Late Titled Tuesday Blitz February 8 2022"]
[White "Novikova, Galina"]
[Black "Burke, Paul"]
[WhiteFideId "4157095"]
[BlackFideId "2605767"]
[WhiteElo "1863"]
[BlackElo "1834"]
[Result "1-0"]
[Round "09"]
[TimeControl "180+1"]
[Date "2022.02.09"]
[WhiteClock "0:01:29"]
[BlackClock "0:00:01"]

1. e4 {[%clk 0:03:00]}  e5 {[%clk 0:02:13]} 2. Nf3 {[%clk 0:02:59]}  Nc6 {[%clk 0:02:13]} 3. d4 {[%clk 0:02:59]}  exd4 {[%clk 0:02:12]} 4. Nxd4 {[%clk 0:03:00]}  Be7 {[%clk 0:02:11]} 5. Nc3 {[%clk 0:02:58]}  d6 {[%clk 0:02:11]} 6. Be3 {[%clk 0:02:58]}  Nf6 {[%clk 0:02:11]} 7. f3 {[%clk 0:02:54]}  O-O {[%clk 0:02:10]} 8. Qd2 {[%clk 0:02:55]}  a6 {[%clk 0:02:10]} 9. O-O-O {[%clk 0:02:54]}  Nxd4 {[%clk 0:02:09]} 10. Bxd4 {[%clk 0:02:55]}  c5 {[%clk 0:02:10]} 11. Be3 {[%clk 0:02:54]}  b5 {[%clk 0:02:10]} 12. g4 {[%clk 0:02:52]}  b4 {[%clk 0:02:10]} 13. Ne2 {[%clk 0:02:52]}  Be6 {[%clk 0:02:03]} 14. Kb1 {[%clk 0:02:51]}  c4 {[%clk 0:01:51]} 15. c3 {[%clk 0:02:51]}  a5 {[%clk 0:01:48]} 16. h4 {[%clk 0:02:47]}  a4 {[%clk 0:01:42]} 17. cxb4 {[%clk 0:02:45]}  a3 {[%clk 0:01:42]} 18. Nd4 {[%clk 0:02:38]}  axb2 {[%clk 0:01:32]} 19. Nxe6 {[%clk 0:02:38]}  fxe6 {[%clk 0:01:32]} 20. Bxc4 {[%clk 0:02:39]}  Qc8 {[%clk 0:01:03]} 21. Bb3 {[%clk 0:02:35]}  Kh8 {[%clk 0:01:02]} 22. Qxb2 {[%clk 0:02:35]}  d5 {[%clk 0:00:53]} 23. h5 {[%clk 0:02:35]}  Bxb4 {[%clk 0:00:49]} 24. Rc1 {[%clk 0:02:31]}  Qa6 {[%clk 0:00:37]} 25. h6 {[%clk 0:02:30]}  g6 {[%clk 0:00:24]} 26. g5 {[%clk 0:02:29]}  Qd3+ {[%clk 0:00:19]} 27. Ka1 {[%clk 0:02:26]}  Qxe3 {[%clk 0:00:17]} 28. gxf6 {[%clk 0:02:26]}  d4 {[%clk 0:00:16]} 29. f7 {[%clk 0:02:26]}  e5 {[%clk 0:00:14]} 30. Qc2 {[%clk 0:01:54]}  Bc3+ {[%clk 0:00:13]} 31. Kb1 {[%clk 0:01:54]}  Qxf3 {[%clk 0:00:07]} 32. Rhf1 {[%clk 0:01:53]}  Qh5 {[%clk 0:00:06]} 33. Rh1 {[%clk 0:01:50]}  Qg5 {[%clk 0:00:05]} 34. Rcg1 {[%clk 0:01:46]}  Qf4 {[%clk 0:00:03]} 35. Rf1 {[%clk 0:01:46]}  Qg5 {[%clk 0:00:03]} 36. Qh2 {[%clk 0:01:39]}  d3 {[%clk 0:00:01]} 37. Rc1 {[%clk 0:01:29]} 1-0


[Site "https://www.chess.com"]

[Event "Late Titled Tuesday Blitz February 8 2022"]
[White "Ortiz Verdezoto, Anahi"]
[Black "Marcziter, Dmitrii"]
[WhiteFideId "3614581"]
[BlackFideId "13900765"]
[WhiteElo "1785"]
[BlackElo "2155"]
[Result "1/2-1/2"]
[Round "09"]
[TimeControl "180+1"]
[Date "2022.02.09"]
[WhiteClock "0:00:17"]
[BlackClock "0:00:40"]

1. d4 {[%clk 0:03:00]}  d5 {[%clk 0:02:58]} 2. c4 {[%clk 0:02:58]}  e6 {[%clk 0:02:58]} 3. Nc3 {[%clk 0:02:58]}  c5 {[%clk 0:02:58]} 4. cxd5 {[%clk 0:02:55]}  exd5 {[%clk 0:02:58]} 5. Nf3 {[%clk 0:02:53]}  Nc6 {[%clk 0:02:58]} 6. Bf4 {[%clk 0:02:52]}  c4 {[%clk 0:02:53]} 7. e3 {[%clk 0:02:51]}  Bb4 {[%clk 0:02:52]} 8. Be2 {[%clk 0:02:49]}  Nge7 {[%clk 0:02:50]} 9. O-O {[%clk 0:02:49]}  Bf5 {[%clk 0:02:50]} 10. a3 {[%clk 0:02:48]}  Bxc3 {[%clk 0:02:50]} 11. bxc3 {[%clk 0:02:48]}  b5 {[%clk 0:02:49]} 12. a4 {[%clk 0:02:37]}  b4 {[%clk 0:02:44]} 13. cxb4 {[%clk 0:02:37]}  Nxb4 {[%clk 0:02:44]} 14. Qd2 {[%clk 0:02:37]}  a5 {[%clk 0:02:43]} 15. Ne5 {[%clk 0:02:35]}  O-O {[%clk 0:02:40]} 16. Rfc1 {[%clk 0:02:29]}  f6 {[%clk 0:02:39]} 17. Nf3 {[%clk 0:02:28]}  Rc8 {[%clk 0:02:34]} 18. Rc3 {[%clk 0:02:25]}  Be4 {[%clk 0:02:31]} 19. Ne1 {[%clk 0:02:24]}  Ng6 {[%clk 0:02:26]} 20. Bg3 {[%clk 0:02:23]}  Rf7 {[%clk 0:02:20]} 21. f3 {[%clk 0:02:23]}  Bf5 {[%clk 0:02:20]} 22. e4 {[%clk 0:02:23]}  Be6 {[%clk 0:02:16]} 23. exd5 {[%clk 0:02:22]}  Bxd5 {[%clk 0:02:16]} 24. Rac1 {[%clk 0:02:23]}  Qd7 {[%clk 0:01:54]} 25. Bxc4 {[%clk 0:02:22]}  Bxc4 {[%clk 0:01:54]} 26. Rxc4 {[%clk 0:02:22]}  Rxc4 {[%clk 0:01:54]} 27. Rxc4 {[%clk 0:02:21]}  Qxa4 {[%clk 0:01:54]} 28. d5 {[%clk 0:02:17]}  Qb5 {[%clk 0:01:51]} 29. Rc8+ {[%clk 0:02:15]}  Rf8 {[%clk 0:01:49]} 30. Rxf8+ {[%clk 0:01:52]}  Nxf8 {[%clk 0:01:48]} 31. d6 {[%clk 0:01:52]}  Nd7 {[%clk 0:01:47]} 32. Nc2 {[%clk 0:01:36]}  Qc5+ {[%clk 0:01:38]} 33. Ne3 {[%clk 0:01:34]}  a4 {[%clk 0:01:29]} 34. Bf2 {[%clk 0:01:34]}  a3 {[%clk 0:01:23]} 35. Nd1 {[%clk 0:01:30]}  Qd5 {[%clk 0:01:15]} 36. Qxd5+ {[%clk 0:01:23]}  Nxd5 {[%clk 0:01:15]} 37. Bd4 {[%clk 0:01:23]}  Kf7 {[%clk 0:01:12]} 38. Nf2 {[%clk 0:01:19]}  Ke6 {[%clk 0:01:10]} 39. Ne4 {[%clk 0:01:18]}  h6 {[%clk 0:01:07]} 40. Nd2 {[%clk 0:01:16]}  N7b6 {[%clk 0:01:03]} 41. Nb3 {[%clk 0:00:56]}  a2 {[%clk 0:01:01]} 42. Nc1 {[%clk 0:00:54]}  Nf4 {[%clk 0:00:55]} 43. Kf2 {[%clk 0:00:45]}  Kxd6 {[%clk 0:00:51]} 44. Nxa2 {[%clk 0:00:42]}  Nc4 {[%clk 0:00:51]} 45. Nc3 {[%clk 0:00:36]}  Nd5 {[%clk 0:00:51]} 46. Ne4+ {[%clk 0:00:33]}  Ke6 {[%clk 0:00:51]} 47. g4 {[%clk 0:00:29]}  g6 {[%clk 0:00:49]} 48. h4 {[%clk 0:00:28]}  f5 {[%clk 0:00:49]} 49. Nc5+ {[%clk 0:00:27]}  Kd6 {[%clk 0:00:48]} 50. Nd3 {[%clk 0:00:26]}  fxg4 {[%clk 0:00:46]} 51. fxg4 {[%clk 0:00:25]}  Ke6 {[%clk 0:00:44]} 52. h5 {[%clk 0:00:24]}  gxh5 {[%clk 0:00:43]} 53. gxh5 {[%clk 0:00:25]}  Nf6 {[%clk 0:00:42]} 54. Kg3 {[%clk 0:00:20]}  Nxh5+ {[%clk 0:00:41]} 55. Kh4 {[%clk 0:00:20]}  Nf6 {[%clk 0:00:41]} 56. Nf4+ {[%clk 0:00:20]}  Kf5 {[%clk 0:00:41]} 57. Bxf6 {[%clk 0:00:19]}  Kxf6 {[%clk 0:00:41]} 58. Kh5 {[%clk 0:00:19]}  Kg7 {[%clk 0:00:41]} 59. Ne6+ {[%clk 0:00:18]}  Kh7 {[%clk 0:00:41]} 60. Nf8+ {[%clk 0:00:17]}  Kg7 {[%clk 0:00:40]} 61. Ne6+ {[%clk 0:00:17]}  Kh7 {[%clk 0:00:40]} 62. Nf8+ {[%clk 0:00:17]}  Kg8 {[%clk 0:00:40]} 63. Kxh6 {[%clk 0:00:17]} 1/2-1/2


[Site "https://www.chess.com"]

[Event "Late Titled Tuesday Blitz February 8 2022"]
[White "Osiecki, Stanislaw"]
[Black "Alimpic, Aleksa"]
[WhiteFideId "1102990"]
[BlackFideId "974323"]
[WhiteElo "2127"]
[BlackElo "2131"]
[Result "0-1"]
[Round "09"]
[TimeControl "180+1"]
[Date "2022.02.09"]
[WhiteClock "0:00:02"]
[BlackClock "0:00:05"]

1. e4 {[%clk 0:03:00]}  g6 {[%clk 0:02:59]} 2. d4 {[%clk 0:03:00]}  Bg7 {[%clk 0:03:00]} 3. Bc4 {[%clk 0:03:00]}  c6 {[%clk 0:02:52]} 4. d5 {[%clk 0:02:55]}  cxd5 {[%clk 0:02:48]} 5. exd5 {[%clk 0:02:55]}  Nf6 {[%clk 0:02:48]} 6. Nf3 {[%clk 0:02:54]}  O-O {[%clk 0:02:48]} 7. O-O {[%clk 0:02:53]}  a6 {[%clk 0:02:48]} 8. a4 {[%clk 0:02:52]}  d6 {[%clk 0:02:46]} 9. Re1 {[%clk 0:02:52]}  Bg4 {[%clk 0:02:39]} 10. h3 {[%clk 0:02:52]}  Bxf3 {[%clk 0:02:39]} 11. Qxf3 {[%clk 0:02:51]}  Nbd7 {[%clk 0:02:40]} 12. Bf4 {[%clk 0:02:50]}  Rc8 {[%clk 0:02:34]} 13. Bb3 {[%clk 0:02:50]}  Nc5 {[%clk 0:02:26]} 14. Nc3 {[%clk 0:02:45]}  Nxb3 {[%clk 0:02:20]} 15. cxb3 {[%clk 0:02:45]}  Re8 {[%clk 0:02:07]} 16. a5 {[%clk 0:02:41]}  Nd7 {[%clk 0:02:00]} 17. Rec1 {[%clk 0:02:33]}  Nc5 {[%clk 0:01:57]} 18. Ra3 {[%clk 0:02:28]}  Rc7 {[%clk 0:01:37]} 19. b4 {[%clk 0:02:25]}  Nd7 {[%clk 0:01:37]} 20. Raa1 {[%clk 0:02:11]}  Ne5 {[%clk 0:01:32]} 21. Bxe5 {[%clk 0:02:08]}  Bxe5 {[%clk 0:01:33]} 22. Nd1 {[%clk 0:01:58]}  Qd7 {[%clk 0:01:22]} 23. Qe3 {[%clk 0:01:54]}  Rec8 {[%clk 0:01:18]} 24. Rxc7 {[%clk 0:01:53]}  Qxc7 {[%clk 0:01:18]} 25. f4 {[%clk 0:01:45]}  Bf6 {[%clk 0:01:16]} 26. Kh2 {[%clk 0:01:42]}  Qc4 {[%clk 0:01:10]} 27. Nc3 {[%clk 0:01:25]}  Bxc3 {[%clk 0:00:55]} 28. bxc3 {[%clk 0:01:24]}  Qxc3 {[%clk 0:00:56]} 29. Re1 {[%clk 0:01:07]}  Qxe3 {[%clk 0:00:54]} 30. Rxe3 {[%clk 0:01:07]}  Kf8 {[%clk 0:00:54]} 31. Re4 {[%clk 0:01:07]}  Rc3 {[%clk 0:00:47]} 32. g4 {[%clk 0:01:06]}  Ke8 {[%clk 0:00:44]} 33. f5 {[%clk 0:01:00]}  Kd7 {[%clk 0:00:44]} 34. fxg6 {[%clk 0:00:59]}  fxg6 {[%clk 0:00:41]} 35. Rf4 {[%clk 0:00:55]}  Ke8 {[%clk 0:00:37]} 36. Rd4 {[%clk 0:00:51]}  Re3 {[%clk 0:00:27]} 37. g5 {[%clk 0:00:45]}  Re5 {[%clk 0:00:23]} 38. h4 {[%clk 0:00:45]}  Kd7 {[%clk 0:00:22]} 39. Kg3 {[%clk 0:00:44]}  e6 {[%clk 0:00:23]} 40. dxe6+ {[%clk 0:00:43]}  Kxe6 {[%clk 0:00:23]} 41. Rc4 {[%clk 0:00:39]}  Rb5 {[%clk 0:00:20]} 42. Kf4 {[%clk 0:00:33]}  d5 {[%clk 0:00:19]} 43. Rd4 {[%clk 0:00:32]}  Kd6 {[%clk 0:00:18]} 44. h5 {[%clk 0:00:28]}  Ke6 {[%clk 0:00:14]} 45. h6 {[%clk 0:00:20]}  b6 {[%clk 0:00:14]} 46. axb6 {[%clk 0:00:17]}  Rxb6 {[%clk 0:00:15]} 47. Kf3 {[%clk 0:00:15]}  Ke5 {[%clk 0:00:13]} 48. Rf4 {[%clk 0:00:13]}  Rb7 {[%clk 0:00:12]} 49. Ke3 {[%clk 0:00:08]}  Rc7 {[%clk 0:00:12]} 50. Rf8 {[%clk 0:00:07]}  d4+ {[%clk 0:00:10]} 51. Kd2 {[%clk 0:00:06]}  Ke4 {[%clk 0:00:07]} 52. Rg8 {[%clk 0:00:05]}  Kf4 {[%clk 0:00:06]} 53. Rg7 {[%clk 0:00:05]}  Rc4 {[%clk 0:00:06]} 54. Rxh7 {[%clk 0:00:04]}  Kxg5 {[%clk 0:00:07]} 55. Ra7 {[%clk 0:00:04]}  Rxb4 {[%clk 0:00:05]} 56. h7 {[%clk 0:00:02]}  Rb8 {[%clk 0:00:05]} 0-1


[Site "https://www.chess.com"]

[Event "Late Titled Tuesday Blitz February 8 2022"]
[White "Ozen, Deniz"]
[Black "Jobava, Baadur"]
[WhiteFideId "6349196"]
[BlackFideId "13601520"]
[WhiteElo "2326"]
[BlackElo "2617"]
[Result "0-1"]
[Round "09"]
[TimeControl "180+1"]
[Date "2022.02.08"]
[WhiteClock "0:00:03"]
[BlackClock "0:00:17"]

1. d4 {[%clk 0:03:00]}  d5 {[%clk 0:02:59]} 2. c4 {[%clk 0:03:00]}  dxc4 {[%clk 0:03:00]} 3. Nf3 {[%clk 0:02:58]}  Nf6 {[%clk 0:03:01]} 4. Nc3 {[%clk 0:02:58]}  a6 {[%clk 0:02:59]} 5. a4 {[%clk 0:02:57]}  Nc6 {[%clk 0:03:00]} 6. e3 {[%clk 0:02:54]}  Na5 {[%clk 0:03:00]} 7. Ne5 {[%clk 0:02:51]}  Be6 {[%clk 0:02:53]} 8. Be2 {[%clk 0:02:48]}  Nd7 {[%clk 0:02:53]} 9. Nf3 {[%clk 0:02:32]}  Nb6 {[%clk 0:02:51]} 10. O-O {[%clk 0:02:30]}  g6 {[%clk 0:02:50]} 11. e4 {[%clk 0:02:30]}  Bg7 {[%clk 0:02:50]} 12. d5 {[%clk 0:02:25]}  Bg4 {[%clk 0:02:50]} 13. Be3 {[%clk 0:02:24]}  O-O {[%clk 0:02:50]} 14. h3 {[%clk 0:02:11]}  Bxf3 {[%clk 0:02:50]} 15. Bxf3 {[%clk 0:02:12]}  c6 {[%clk 0:02:49]} 16. dxc6 {[%clk 0:02:08]}  Qc7 {[%clk 0:02:22]} 17. cxb7 {[%clk 0:01:50]}  Rad8 {[%clk 0:02:22]} 18. Qe2 {[%clk 0:01:45]}  Qxb7 {[%clk 0:02:15]} 19. Rfd1 {[%clk 0:01:19]}  Be5 {[%clk 0:02:02]} 20. Rab1 {[%clk 0:01:10]}  e6 {[%clk 0:01:59]} 21. Bg5 {[%clk 0:01:06]}  Rxd1+ {[%clk 0:01:59]} 22. Qxd1 {[%clk 0:01:05]}  Rb8 {[%clk 0:01:54]} 23. Qe2 {[%clk 0:00:58]}  Qc7 {[%clk 0:01:51]} 24. Rd1 {[%clk 0:00:58]}  Nb3 {[%clk 0:01:42]} 25. Be3 {[%clk 0:00:54]}  Bxc3 {[%clk 0:01:40]} 26. Bxb6 {[%clk 0:00:54]}  Rxb6 {[%clk 0:01:37]} 27. bxc3 {[%clk 0:00:54]}  e5 {[%clk 0:01:32]} 28. Qe3 {[%clk 0:00:50]}  Kg7 {[%clk 0:01:31]} 29. Rd5 {[%clk 0:00:48]}  Re6 {[%clk 0:01:21]} 30. Bg4 {[%clk 0:00:44]}  Re7 {[%clk 0:01:21]} 31. Be2 {[%clk 0:00:44]}  Qc6 {[%clk 0:01:15]} 32. a5 {[%clk 0:00:38]}  Qa4 {[%clk 0:01:15]} 33. h4 {[%clk 0:00:28]}  h6 {[%clk 0:01:10]} 34. Kh2 {[%clk 0:00:23]}  Qc6 {[%clk 0:00:52]} 35. Qb6 {[%clk 0:00:20]}  Qc8 {[%clk 0:00:46]} 36. Qb4 {[%clk 0:00:20]}  Rc7 {[%clk 0:00:38]} 37. Rxe5 {[%clk 0:00:19]}  Nd2 {[%clk 0:00:33]} 38. Qd6 {[%clk 0:00:17]}  Rd7 {[%clk 0:00:33]} 39. Qb6 {[%clk 0:00:16]}  Rb7 {[%clk 0:00:24]} 40. Qd4 {[%clk 0:00:12]}  Qb8 {[%clk 0:00:19]} 41. f4 {[%clk 0:00:11]}  Nb3 {[%clk 0:00:19]} 42. Qxc4 {[%clk 0:00:10]}  Nxa5 {[%clk 0:00:19]} 43. Rxa5 {[%clk 0:00:09]}  Qxf4+ {[%clk 0:00:20]} 44. Kh3 {[%clk 0:00:07]}  Rb1 {[%clk 0:00:20]} 45. Qd4+ {[%clk 0:00:05]}  Kh7 {[%clk 0:00:21]} 46. g3 {[%clk 0:00:01]}  Qc1 {[%clk 0:00:16]} 47. Qf6 {[%clk 0:00:01]}  Qh1+ {[%clk 0:00:15]} 48. Kg4 {[%clk 0:00:02]}  Qxe4+ {[%clk 0:00:16]} 49. Qf4 {[%clk 0:00:02]}  Qxe2+ {[%clk 0:00:16]} 50. Qf3 {[%clk 0:00:03]}  f5+ {[%clk 0:00:15]} 51. Kf4 {[%clk 0:00:03]}  g5+ {[%clk 0:00:15]} 52. hxg5 {[%clk 0:00:03]}  hxg5+ {[%clk 0:00:16]} 53. Kxf5 {[%clk 0:00:03]}  Qxf3+ {[%clk 0:00:17]} 0-1


[Site "https://www.chess.com"]

[Event "Late Titled Tuesday Blitz February 8 2022"]
[White "Peatman, Carter"]
[Black "Oro, Luis"]
[WhiteFideId "2096480"]
[BlackFideId "104094"]
[WhiteElo "2414"]
[BlackElo "2296"]
[Result "1/2-1/2"]
[Round "09"]
[TimeControl "180+1"]
[Date "2022.02.09"]
[WhiteClock "0:00:03"]
[BlackClock "0:00:09"]

1. d4 {[%clk 0:02:59]}  Nf6 {[%clk 0:02:58]} 2. Nf3 {[%clk 0:02:58]}  g6 {[%clk 0:02:58]} 3. Bf4 {[%clk 0:02:58]}  Bg7 {[%clk 0:02:58]} 4. e3 {[%clk 0:02:59]}  O-O {[%clk 0:02:58]} 5. h3 {[%clk 0:02:59]}  d6 {[%clk 0:02:59]} 6. c3 {[%clk 0:02:57]}  Nbd7 {[%clk 0:02:59]} 7. Bh2 {[%clk 0:02:57]}  b6 {[%clk 0:02:57]} 8. Bd3 {[%clk 0:02:56]}  Bb7 {[%clk 0:02:57]} 9. Nbd2 {[%clk 0:02:55]}  c5 {[%clk 0:02:55]} 10. e4 {[%clk 0:02:53]}  Rc8 {[%clk 0:02:53]} 11. O-O {[%clk 0:02:53]}  Ne8 {[%clk 0:02:40]} 12. Qe2 {[%clk 0:02:52]}  e6 {[%clk 0:02:35]} 13. Rfd1 {[%clk 0:02:49]}  Qe7 {[%clk 0:02:34]} 14. a4 {[%clk 0:02:46]}  h6 {[%clk 0:02:16]} 15. a5 {[%clk 0:02:44]}  e5 {[%clk 0:02:10]} 16. axb6 {[%clk 0:02:38]}  axb6 {[%clk 0:02:10]} 17. Ra7 {[%clk 0:02:39]}  Rb8 {[%clk 0:01:58]} 18. dxe5 {[%clk 0:02:35]}  dxe5 {[%clk 0:01:52]} 19. Ba6 {[%clk 0:02:29]}  Nd6 {[%clk 0:01:41]} 20. Nc4 {[%clk 0:02:28]}  Bxa6 {[%clk 0:01:37]} 21. Rxa6 {[%clk 0:02:21]}  Nxc4 {[%clk 0:01:36]} 22. Qxc4 {[%clk 0:02:22]}  Ra8 {[%clk 0:01:35]} 23. Rxa8 {[%clk 0:02:15]}  Rxa8 {[%clk 0:01:35]} 24. Qd5 {[%clk 0:02:16]}  Ra7 {[%clk 0:01:04]} 25. Nd2 {[%clk 0:02:11]}  Nf8 {[%clk 0:00:49]} 26. Nc4 {[%clk 0:02:09]}  Rd7 {[%clk 0:00:48]} 27. Nd6 {[%clk 0:02:07]}  Nh7 {[%clk 0:00:40]} 28. Qc6 {[%clk 0:01:58]}  Qe6 {[%clk 0:00:36]} 29. f4 {[%clk 0:01:01]}  exf4 {[%clk 0:00:24]} 30. Bxf4 {[%clk 0:01:02]}  Bf8 {[%clk 0:00:21]} 31. e5 {[%clk 0:00:58]}  f6 {[%clk 0:00:18]} 32. Qd5 {[%clk 0:00:48]}  Qxd5 {[%clk 0:00:18]} 33. Rxd5 {[%clk 0:00:49]}  fxe5 {[%clk 0:00:19]} 34. Bxe5 {[%clk 0:00:50]}  Ng5 {[%clk 0:00:18]} 35. c4 {[%clk 0:00:46]}  Bxd6 {[%clk 0:00:14]} 36. Rxd6 {[%clk 0:00:42]}  Rb7 {[%clk 0:00:13]} 37. Rxg6+ {[%clk 0:00:41]}  Kh7 {[%clk 0:00:12]} 38. Rc6 {[%clk 0:00:39]}  Nf7 {[%clk 0:00:11]} 39. Rc7 {[%clk 0:00:37]}  Rxc7 {[%clk 0:00:08]} 40. Bxc7 {[%clk 0:00:38]}  Kg6 {[%clk 0:00:08]} 41. Bxb6 {[%clk 0:00:38]}  Ne5 {[%clk 0:00:08]} 42. b3 {[%clk 0:00:34]}  Nd3 {[%clk 0:00:09]} 43. Kf1 {[%clk 0:00:30]}  Kf5 {[%clk 0:00:09]} 44. Bd8 {[%clk 0:00:26]}  h5 {[%clk 0:00:07]} 45. Be7 {[%clk 0:00:24]}  Ke4 {[%clk 0:00:08]} 46. Kg1 {[%clk 0:00:21]}  Kd4 {[%clk 0:00:08]} 47. Kh2 {[%clk 0:00:20]}  Kc3 {[%clk 0:00:08]} 48. Kg3 {[%clk 0:00:20]}  Kxb3 {[%clk 0:00:09]} 49. Kh4 {[%clk 0:00:21]}  Kxc4 {[%clk 0:00:09]} 50. Kxh5 {[%clk 0:00:21]}  Kd5 {[%clk 0:00:10]} 51. g4 {[%clk 0:00:17]}  Nf4+ {[%clk 0:00:09]} 52. Kg5 {[%clk 0:00:11]}  Nxh3+ {[%clk 0:00:09]} 53. Kf5 {[%clk 0:00:09]}  c4 {[%clk 0:00:08]} 54. Bf6 {[%clk 0:00:09]}  Kc5 {[%clk 0:00:08]} 55. Bc3 {[%clk 0:00:05]}  Kd5 {[%clk 0:00:07]} 56. g5 {[%clk 0:00:02]}  Nxg5 {[%clk 0:00:07]} 57. Kxg5 {[%clk 0:00:03]}  Ke4 {[%clk 0:00:08]} 58. Kg6 {[%clk 0:00:03]}  Kd3 {[%clk 0:00:09]} 59. Be5 {[%clk 0:00:03]}  c3 {[%clk 0:00:09]} 60. Bxc3 {[%clk 0:00:03]} 1/2-1/2


[Site "https://www.chess.com"]